fUSD/lending_fUSD_20240725
["ID","MTS","AMOUNT","RATE_DAILY","PERIOD"]
[333195996,1721935834115,-150.59945599,9.821e-05,2]
[333195997,1721935834125,-150.39538897,9.839e-05,2]
[333195998,1721935834135,-151.11045029,9.84e-05,2]
[333195999,1721935834144,-418.35,9.841e-05,2]
[333196000,1721935834153,-203.32548463,9.843e-05,2]
[333196001,1721935834163,-151.3523734,9.85e-05,2]
[333196002,1721935834172,-179.60349175,9.878e-05,2]
[333196003,1721935834182,-420.24,9.941e-05,2]
[333196004,1721935834195,-420.24,9.941e-05,2]
[333196005,1721935834205,-833.79,9.941e-05,2]
[333196006,1721935834215,-833.79,9.941e-05,2]
[333196007,1721935834224,-420.24,9.941e-05,2]
[333196008,1721935834234,-833.79,9.941e-05,2]
[333196009,1721935834244,-420.24,9.941e-05,2]
[333196010,1721935834254,-420.24,9.941e-05,2]
[333196011,1721935834263,-833.79,9.941e-05,2]
[333196012,1721935834275,-833.79,9.941e-05,2]
[333196013,1721935834285,-420.24,9.941e-05,2]
[333196014,1721935834294,-833.79,9.941e-05,2]
[333196015,1721935834304,-420.24,9.941e-05,2]
[333196016,1721935834313,-420.24,9.941e-05,2]
[333196017,1721935834323,-833.79,9.941e-05,2]
[333196018,1721935834333,-833.79,9.941e-05,2]
[333196019,1721935834342,-300.0,9.944e-05,2]
[333196020,1721935834352,-326.39165171,9.949e-05,2]
[333196021,1721935834362,-153.07808264,9.968e-05,2]
[333196022,1721935834371,-153.59883876,9.977e-05,2]
[333196023,1721935834381,-856.59,9.978e-05,2]
[333196024,1721935834390,-151.174157,0.0001004,2]
[333196025,1721935834400,-150.0,0.00010078,2]
[333196026,1721935834411,-151.71219966,0.00010087,2]
[333196027,1721935834421,-156.61371941,0.00010103,2]
[333196028,1721935834431,-153.71132585,0.00010152,2]
[333196029,1721935834440,-153.07808264,0.00010164,2]
[333196030,1721935834450,-153.07808264,0.00010211,2]
[333196031,1721935834460,-1000.0,0.00010274,2]
[333196032,1721935834471,-3742.0,0.00010291,2]
[333196033,1721935834481,-2147.86361307,0.000103,2]
[333196034,1721935834491,-30779.445,0.000103,2]
[333196035,1721935834501,-2500.0,0.000103,2]
[333196036,1721935834511,-153.71132585,0.00010357,2]
[333196037,1721935834520,-326.39165171,0.00010361,2]
[333196038,1721935834530,-179.60349175,0.00010375,2]
[333196039,1721935834540,-1378.95,0.00010382,2]
[333196040,1721935834549,-12689.3075,0.00010393,2]
[333196041,1721935834559,-19066.3287,0.00010393,2]
[333196042,1721935834568,-174147.85996724,0.000104,2]
[333196043,1721935834852,-501.60262886,0.000104,2]
[333196044,1721935834863,-263.3604,0.000104,2]
[333196045,1721935834874,-11360.65198285,0.000104,2]
[333196046,1721935834885,-4020.05519747,0.000104,2]
[333196047,1721935834913,-54187.82982358,0.000104,2]
[333196048,1721935834922,-235.2687,0.000104,2]
[333196049,1721935834932,-1000.0,0.000104,2]
[333196050,1721935834941,-460.3253,0.000104,2]
[333196051,1721935834950,-6076.71870416,0.000104,2]
[333196052,1721935834959,-927.60680925,0.000104,2]
[333196053,1721935834971,-151.40003661,0.00010428,2]
[333196054,1721935834980,-20358.10737942,0.00010462,2]
[333196055,1721935834989,-151.71219966,0.00010471,2]
[333196056,1721935834998,-346.5857324,0.00010493,2]
[333196057,1721935835008,-8837.1912062,0.00010493,2]
[333196058,1721935835018,-43988.3025547,0.00010493,2]
[333196059,1721935835027,-24926.3712971,0.00010493,2]
[333196060,1721935835037,-3412.0223413,0.00010493,2]
[333196061,1721935835046,-2333.5548524,0.00010493,2]
[333196062,1721935835055,-833.64,0.00010493,2]
[333196063,1721935835064,-3212.899999,0.00010497,2]
[333196064,1721935835074,-5290.13878641,0.00010497,2]
[333196065,1721935835085,-300.02,0.00010499,2]
[333196066,1721935835094,-4037.31770087,0.00010499,2]
[333196067,1721935835104,-481.13102725,0.00010499,2]
[333196068,1721935835114,-956.0,0.000105,2]
[333196069,1721935835123,-733880.38617035,0.000105,2]
[333196074,1721935838419,-8779.34461839,0.000105,2]
[333196075,1721935838588,-1291.3936374,0.000105,2]
[333196210,1721935840200,-884.16644664,0.000105,2]
[333196225,1721935840348,-4545.3896214,0.000105,2]
[333196244,1721935840536,-6925.93042756,0.000105,2]
[333196246,1721935840548,-3455.39202086,0.000105,2]
[333196248,1721935840559,-4231733.25407527,0.000105,2]
[333196250,1721935840569,-2000.0,0.000105,2]
[333196252,1721935840579,-200.0,0.000105,2]
[333196254,1721935840588,-500.0,0.000105,2]
[333196256,1721935840598,-151.0,0.000105,2]
[333196258,1721935840607,-500.0,0.000105,2]
[333196260,1721935840616,-151.0,0.000105,2]
[333196262,1721935840626,-500.0,0.000105,2]
[333196264,1721935840635,-500.0,0.000105,2]
[333196266,1721935840645,-151.0,0.000105,2]
[333196268,1721935840655,-500.0,0.000105,2]
[333196270,1721935840664,-151.0,0.000105,2]
[333196272,1721935840678,-500.0,0.000105,2]
[333196274,1721935840688,-151.0,0.000105,2]
[333196276,1721935840697,-500.0,0.000105,2]
[333196278,1721935840708,-151.0,0.000105,2]
[333196280,1721935840718,-919.0,0.000105,2]
[333196282,1721935840728,-199.0,0.000105,2]
[333196284,1721935840737,-3300.0,0.000105,2]
[333196286,1721935840747,-2000.0,0.000105,2]
[333196288,1721935840758,-200.0,0.000105,2]
[333196290,1721935840768,-3000.0,0.000105,2]
[333196292,1721935840778,-203.32548463,0.00010546,2]
[333196294,1721935840788,-153.59883876,0.00010548,2]
[333196296,1721935840798,-151.72863448,0.00010567,2]
[333196298,1721935840808,-179.60349175,0.00010573,2]
[333196300,1721935840817,-500.0,0.00010579,2]
[333196302,1721935840827,-210.0,0.0001058,2]
[333196304,1721935840837,-1189.0,0.000106,2]
[333196306,1721935840847,-2000.0,0.00010605,2]
[333196308,1721935840856,-200.0,0.00010605,2]
[333196310,1721935840866,-2000.0,0.00010605,2]
[333196312,1721935840875,-200.0,0.00010605,2]
[333196314,1721935840884,-153.59883876,0.00010615,2]
[333196316,1721935840894,-179.60349175,0.00010644,2]
[333196318,1721935840904,-151.72863448,0.0001065,2]
[333196321,1721935840915,-6076.71870415,0.0001065,2]
[333196323,1721935840925,-2000.0,0.00010711,2]
[333196325,1721935840935,-200.0,0.00010711,2]
[333196327,1721935840945,-2000.0,0.00010711,2]
[333196329,1721935840955,-200.0,0.00010711,2]
[333196331,1721935840965,-179.60349175,0.00010724,2]
[333196333,1721935840975,-151.72863448,0.00010733,2]
[333196335,1721935840985,-155.27583559,0.00010744,2]
[333196337,1721935840995,-326.39165171,0.0001075,2]
[333196339,1721935841005,-153.71132585,0.00010782,2]
[333196341,1721935841014,-159.06,0.000108,2]
[333196343,1721935841024,-19931.95553548,0.00010816,2]
[333196345,1721935841033,-151.72863448,0.00010817,2]
[333196347,1721935841043,-155.39880179,0.00010817,2]
[333196349,1721935841053,-206.826,0.00010818,2]
[333196351,1721935841063,-550.0,0.00010818,2]
[333196353,1721935841072,-262.988,0.00010818,2]
[333196355,1721935841082,-2382.0,0.00010818,2]
[333196357,1721935841091,-1994.0,0.00010818,2]
[333196359,1721935841101,-150.0,0.00010818,2]
[333196361,1721935841111,-3283.0,0.00010818,2]
[333196363,1721935841120,-150.0,0.00010818,2]
[333196365,1721935841130,-1074.0,0.00010818,2]
[333196367,1721935841140,-5830.0,0.00010818,2]
[333196369,1721935841151,-5122.0,0.00010818,2]
[333196371,1721935841161,-1254.0,0.00010818,2]
[333196373,1721935841171,-1829.0,0.00010818,2]
[333196375,1721935841180,-1663.0,0.00010818,2]
[333196377,1721935841193,-362.0,0.00010818,2]
[333196379,1721935841203,-1276.972,0.00010818,2]
[333196381,1721935841212,-1761.653,0.00010818,2]
[333196383,1721935841223,-2000.0,0.00010818,2]
[333196385,1721935841235,-200.0,0.00010818,2]
[333196387,1721935841245,-200.0,0.00010818,2]
[333196389,1721935841255,-413.75387275,0.00010842,2]
[333196391,1721935841266,-210.0,0.0001088,2]
[333196393,1721935841276,-5389.75441512,0.0001088,2]
[333196395,1721935841285,-158.71354409,0.00010886,2]
[333196397,1721935841295,-151.71219966,0.00010893,2]
[333196398,1721935841304,-203.32548463,0.00010893,2]
[333196400,1721935841314,-179.60349175,0.00010896,2]
[333196402,1721935841323,-406.86979511,0.00010899,2]
[333196404,1721935841334,-406.86979504,0.00010899,2]
[333196406,1721935841344,-406.86979504,0.00010899,2]
[333196408,1721935841354,-406.86979504,0.00010899,2]
[333196410,1721935841364,-406.86979504,0.00010899,2]
[333196412,1721935841374,-406.86979504,0.00010899,2]
[333196415,1721935841385,-406.86979504,0.00010899,2]
[333196416,1721935841396,-406.86979504,0.00010899,2]
[333196418,1721935841406,-406.86979504,0.00010899,2]
[333196420,1721935841416,-151.72863448,0.000109,2]
[333196422,1721935841425,-406.86979504,0.000109,2]
[333196424,1721935841435,-6076.71870415,0.000109,2]
[333196426,1721935841446,-500.0,0.00010905,2]
[333196429,1721935841457,-151.51960296,0.00010907,2]
[333196431,1721935841469,-377.46873323,0.00010918,2]
[333196456,1721935841710,-2000.0,0.00010926,2]
[333196458,1721935841725,-200.0,0.00010926,2]
[333196460,1721935841735,-194.56792257,0.00010958,2]
[333196462,1721935841744,-306.02874822,0.00010958,2]
[333196463,1721935841754,-500.0,0.00010958,2]
[333196465,1721935841764,-500.0,0.00010958,2]
[333196467,1721935841774,-500.0,0.00010958,2]
[333196469,1721935841783,-500.0,0.00010958,2]
[333196471,1721935841793,-222.68801984,0.00010958,2]
[333196473,1721935841802,-500.0,0.00010958,2]
[333196474,1721935841812,-500.0,0.00010958,2]
[333196475,1721935841821,-345.66414586,0.00010958,2]
[333196476,1721935841830,-500.0,0.00010958,2]
[333196477,1721935841840,-627.83,0.00010958,2]
[333196479,1721935841849,-500.0,0.00010958,2]
[333196481,1721935841859,-500.0,0.00010958,2]
[333196483,1721935841869,-500.0,0.00010958,2]
[333196485,1721935841878,-600.28,0.00010958,2]
[333196487,1721935841888,-267.21302221,0.00010958,2]
[333196489,1721935841897,-500.0,0.00010958,2]
[333196490,1721935841907,-500.0,0.00010958,2]
[333196491,1721935841916,-500.0,0.00010958,2]
[333196492,1721935841926,-500.0,0.00010958,2]
[333196493,1721935841935,-500.0,0.00010958,2]
[333196494,1721935841945,-500.0,0.00010958,2]
[333196495,1721935841954,-500.0,0.00010958,2]
[333196496,1721935841963,-177.44,0.00010958,2]
[333196497,1721935841975,-271.057395,0.00010958,2]
[333196498,1721935841984,-500.0,0.00010958,2]
[333196499,1721935841994,-500.0,0.00010958,2]
[333196500,1721935842003,-500.0,0.00010958,2]
[333196501,1721935842013,-280.46,0.00010958,2]
[333196502,1721935842022,-318.80167394,0.00010958,2]
[333196503,1721935842032,-221.61180644,0.00010958,2]
[333196504,1721935842041,-500.0,0.00010958,2]
[333196505,1721935842050,-500.0,0.00010958,2]
[333196506,1721935842060,-500.0,0.00010958,2]
[333196507,1721935842069,-500.0,0.00010958,2]
[333196508,1721935842079,-244.68,0.00010958,2]
[333196509,1721935842088,-500.0,0.00010958,2]
[333196510,1721935842097,-618.69,0.00010958,2]
[333196511,1721935842107,-573.70951672,0.00010958,2]
[333196512,1721935842115,-500.0,0.00010958,2]
[333196513,1721935842124,-366.64930551,0.00010958,2]
[333196514,1721935842134,-500.0,0.00010958,2]
[333196515,1721935842143,-500.0,0.00010958,2]
[333196516,1721935842152,-242.31777726,0.00010958,2]
[333196517,1721935842161,-500.0,0.00010958,2]
[333196518,1721935842170,-500.0,0.00010958,2]
[333196520,1721935842180,-500.0,0.00010958,2]
[333196522,1721935842193,-500.0,0.00010958,2]
[333196523,1721935842203,-500.0,0.00010958,2]
[333196524,1721935842212,-418.81,0.00010958,2]
[333196525,1721935842222,-500.0,0.00010958,2]
[333196526,1721935842233,-343.91493527,0.00010958,2]
[333196527,1721935842242,-879.69,0.00010958,2]
[333196528,1721935842252,-500.0,0.00010958,2]
[333196529,1721935842262,-879.69,0.00010958,2]
[333196530,1721935842271,-879.69,0.00010958,2]
[333196531,1721935842280,-879.69,0.00010958,2]
[333196532,1721935842290,-879.69,0.00010958,2]
[333196533,1721935842299,-879.69,0.00010958,2]
[333196534,1721935842308,-879.69,0.00010958,2]
[333196535,1721935842318,-879.69,0.00010958,2]
[333196536,1721935842328,-879.69,0.00010958,2]
[333196537,1721935842337,-879.69,0.00010958,2]
[333196538,1721935842346,-879.69,0.00010958,2]
[333196540,1721935842357,-879.69,0.00010958,2]
[333196542,1721935842366,-879.69,0.00010958,2]
[333196544,1721935842376,-879.69,0.00010958,2]
[333196546,1721935842386,-879.69,0.00010958,2]
[333196548,1721935842395,-879.69,0.00010958,2]
[333196550,1721935842405,-879.69,0.00010958,2]
[333196551,1721935842414,-879.69,0.00010958,2]
[333196553,1721935842424,-879.69,0.00010958,2]
[333196555,1721935842433,-879.69,0.00010958,2]
[333196557,1721935842443,-879.69,0.00010958,2]
[333196559,1721935842452,-879.69,0.00010958,2]
[333196561,1721935842462,-879.69,0.00010958,2]
[333196563,1721935842473,-879.69793858,0.00010958,2]
[333196565,1721935842482,-456.0191096,0.00010958,2]
[333196567,1721935842491,-500.0,0.00010958,2]
[333196569,1721935842501,-307.59279992,0.00010958,2]
[333196571,1721935842510,-500.0,0.00010958,2]
[333196573,1721935842520,-500.0,0.00010958,2]
[333196575,1721935842529,-500.0,0.00010958,2]
[333196577,1721935842538,-500.0,0.00010958,2]
[333196579,1721935842548,-500.0,0.00010958,2]
[333196581,1721935842558,-500.0,0.00010958,2]
[333196583,1721935842567,-500.0,0.00010958,2]
[333196585,1721935842577,-500.0,0.00010958,2]
[333196587,1721935842587,-452.73838273,0.00010958,2]
[333196589,1721935842596,-500.0,0.00010958,2]
[333196591,1721935842605,-500.0,0.00010958,2]
[333196593,1721935842615,-500.0,0.00010958,2]
[333196595,1721935842624,-400.29,0.00010958,2]
[333196597,1721935842634,-507.65577282,0.00010958,2]
[333196599,1721935842644,-500.0,0.00010958,2]
[333196601,1721935842653,-434.99486142,0.00010958,2]
[333196603,1721935842663,-500.0,0.00010958,2]
[333196605,1721935842672,-350.35,0.00010958,2]
[333196607,1721935842682,-500.0,0.00010958,2]
[333196609,1721935842691,-500.0,0.00010958,2]
[333196611,1721935842701,-500.0,0.00010958,2]
[333196613,1721935842711,-500.0,0.00010958,2]
[333196615,1721935842722,-500.0,0.00010958,2]
[333196617,1721935842732,-500.0,0.00010958,2]
[333196619,1721935842742,-182.83,0.00010958,2]
[333196621,1721935842754,-500.0,0.00010958,2]
[333196623,1721935842763,-500.0,0.00010958,2]
[333196625,1721935842774,-240.18,0.00010958,2]
[333196627,1721935842785,-252.106068,0.00010958,2]
[333196629,1721935842796,-500.0,0.00010958,2]
[333196631,1721935842806,-500.0,0.00010958,2]
[333196633,1721935842818,-197.29,0.00010958,2]
[333196635,1721935842827,-568.61389259,0.00010958,2]
[333196637,1721935842837,-500.0,0.00010958,2]
[333196639,1721935842846,-500.0,0.00010958,2]
[333196641,1721935842855,-500.0,0.00010958,2]
[333196643,1721935842865,-638.43,0.00010958,2]
[333196645,1721935842874,-500.0,0.00010958,2]
[333196647,1721935842884,-544.93,0.00010958,2]
[333196649,1721935842894,-564.16,0.00010958,2]
[333196651,1721935842905,-500.0,0.00010958,2]
[333196653,1721935842915,-500.0,0.00010958,2]
[333196655,1721935842926,-500.0,0.00010958,2]
[333196657,1721935842936,-500.0,0.00010958,2]
[333196659,1721935842947,-500.0,0.00010958,2]
[333196661,1721935842958,-500.0,0.00010958,2]
[333196664,1721935842968,-500.0,0.00010958,2]
[333196667,1721935842977,-500.0,0.00010958,2]
[333196669,1721935842987,-175.9896936,0.00010958,2]
[333196671,1721935842996,-500.0,0.00010958,2]
[333196673,1721935843005,-500.0,0.00010958,2]
[333196676,1721935843015,-500.0,0.00010958,2]
[333196678,1721935843024,-500.0,0.00010958,2]
[333196680,1721935843034,-500.0,0.00010958,2]
[333196682,1721935843043,-500.0,0.00010958,2]
[333196684,1721935843052,-500.0,0.00010958,2]
[333196685,1721935843062,-500.0,0.00010958,2]
[333196687,1721935843072,-500.0,0.00010958,2]
[333196689,1721935843081,-407.99461511,0.00010958,2]
[333196692,1721935843091,-456.00655987,0.00010958,2]
[333196693,1721935843101,-500.0,0.00010958,2]
[333196695,1721935843110,-500.0,0.00010958,2]
[333196697,1721935843120,-249.62,0.00010958,2]
[333196699,1721935843130,-500.0,0.00010958,2]
[333196701,1721935843140,-500.0,0.00010958,2]
[333196703,1721935843150,-500.0,0.00010958,2]
[333196705,1721935843161,-500.0,0.00010958,2]
[333196707,1721935843171,-438.16205669,0.00010958,2]
[333196709,1721935843180,-500.0,0.00010958,2]
[333196711,1721935843194,-500.0,0.00010958,2]
[333196715,1721935843203,-500.0,0.00010958,2]
[333196718,1721935843213,-500.0,0.00010958,2]
[333196721,1721935843224,-500.0,0.00010958,2]
[333196725,1721935843234,-500.0,0.00010958,2]
[333196728,1721935843243,-500.0,0.00010958,2]
[333196730,1721935843253,-551.531928,0.00010958,2]
[333196732,1721935843268,-500.0,0.00010958,2]
[333196734,1721935843277,-500.0,0.00010958,2]
[333196736,1721935843286,-500.0,0.00010958,2]
[333196738,1721935843295,-582.15278321,0.00010958,2]
[333196740,1721935843305,-602.75194665,0.00010958,2]
[333196741,1721935843314,-219.97665441,0.00010958,2]
[333196743,1721935843323,-500.0,0.00010958,2]
[333196745,1721935843332,-500.0,0.00010958,2]
[333196747,1721935843341,-418.95896555,0.00010958,2]
[333196749,1721935843351,-500.0,0.00010958,2]
[333196751,1721935843362,-549.05715338,0.00010958,2]
[333196753,1721935843372,-1031.4,0.00010958,2]
[333196755,1721935843381,-1031.4,0.00010958,2]
[333196757,1721935843391,-1031.4,0.00010958,2]
[333196759,1721935843401,-1031.4,0.00010958,2]
[333196762,1721935843410,-1031.4,0.00010958,2]
[333196763,1721935843419,-1031.4,0.00010958,2]
[333196765,1721935843428,-1031.4,0.00010958,2]
[333196767,1721935843438,-1031.4,0.00010958,2]
[333196769,1721935843447,-1031.4,0.00010958,2]
[333196771,1721935843456,-1031.4,0.00010958,2]
[333196773,1721935843465,-1031.4,0.00010958,2]
[333196775,1721935843477,-1031.4,0.00010958,2]
[333196777,1721935843487,-1031.4,0.00010958,2]
[333196779,1721935843496,-1031.4,0.00010958,2]
[333196781,1721935843505,-1031.4,0.00010958,2]
[333196783,1721935843515,-1031.4,0.00010958,2]
[333196785,1721935843524,-1031.4,0.00010958,2]
[333196787,1721935843533,-1031.4,0.00010958,2]
[333196789,1721935843543,-1031.4,0.00010958,2]
[333196791,1721935843553,-1031.4,0.00010958,2]
[333196793,1721935843563,-1031.4,0.00010958,2]
[333196795,1721935843572,-1031.4,0.00010958,2]
[333196797,1721935843583,-1031.4,0.00010958,2]
[333196799,1721935843593,-1031.40102383,0.00010958,2]
[333196801,1721935843602,-588.82,0.00010958,2]
[333196803,1721935843612,-588.82,0.00010958,2]
[333196805,1721935843621,-588.82,0.00010958,2]
[333196807,1721935843630,-588.82,0.00010958,2]
[333196809,1721935843640,-500.0,0.00010959,2]
[333196811,1721935843649,-500.0,0.00010959,2]
[333196813,1721935843659,-500.0,0.00010959,2]
[333196814,1721935843669,-250.0,0.00010959,2]
[333196816,1721935843678,-150.0,0.00010959,2]
[333196818,1721935843688,-1500.0,0.00010959,5]
[333196820,1721935843697,-11456.07,0.00010959,2]
[333196822,1721935843707,-423.38,0.00010959,2]
[333196824,1721935843717,-347.47,0.00010959,2]
[333196826,1721935843726,-642.38,0.00010959,2]
[333196828,1721935843735,-535.32,0.00010959,2]
[333196830,1721935843745,-8500.0,0.0001099,2]
[333196832,1721935843754,-1466.9830081,0.00010991,2]
[333196835,1721935843764,-4170.5289811,0.00010991,2]
[333196837,1721935843773,-151.0,0.00010992,2]
[333196839,1721935843783,-151.0,0.00010992,2]
[333196841,1721935843793,-151.0,0.00010992,2]
[333196843,1721935843802,-159.882749,0.00010992,2]
[333196845,1721935843812,-159.882749,0.00010992,2]
[333196847,1721935843822,-308.5714808,0.00010992,2]
[333196849,1721935843831,-270.5572292,0.00010992,2]
[333196851,1721935843841,-232.5429775,0.00010992,2]
[333196853,1721935843850,-194.5287259,0.00010992,2]
[333196855,1721935843860,-7887.0445296,0.00010992,2]
[333196857,1721935843869,-6936.8978529,0.00010992,2]
[333196859,1721935843878,-5986.7511763,0.00010992,2]
[333196861,1721935843888,-5036.6044997,0.00010992,2]
[333196863,1721935843897,-1309.2576633,0.00010992,2]
[333196865,1721935843906,-1151.5323186,0.00010992,2]
[333196867,1721935843916,-993.8069738,0.00010992,2]
[333196869,1721935843925,-836.081629,0.00010992,2]
[333196871,1721935843934,-39258.8202444,0.00010992,2]
[333196872,1721935843944,-34529.337934,0.00010992,2]
[333196874,1721935843953,-29799.8556236,0.00010992,2]
[333196876,1721935843962,-25070.3733133,0.00010992,2]
[333196878,1721935843974,-3722.1269765,0.00010992,2]
[333196880,1721935843984,-3273.724972,0.00010992,2]
[333196882,1721935843993,-2825.3229675,0.00010992,2]
[333196884,1721935844003,-2376.920963,0.00010992,2]
[333196886,1721935844012,-22246.3671763,0.00010992,2]
[333196888,1721935844021,-10828.57748014,0.00010992,2]
[333196908,1721935844216,-38367.0,0.00010818,2]
[333196909,1721935844234,-588.82,0.00010958,2]
[333196911,1721935844243,-588.82,0.00010958,2]
[333196913,1721935844252,-588.82,0.00010958,2]
[333196915,1721935844263,-588.82,0.00010958,2]
[333196917,1721935844272,-588.82,0.00010958,2]
[333196919,1721935844282,-588.82,0.00010958,2]
[333196921,1721935844291,-8737.78557546,0.00010992,2]
[333196922,1721935844300,-16886.3589348,0.00010992,2]
[333196924,1721935844310,-14206.3548141,0.00010992,2]
[333196926,1721935844320,-634.121752,0.00010992,2]
[333196928,1721935844329,-634.121752,0.00010992,2]
[333196930,1721935844338,-3045.172557,0.00010992,2]
[333196932,1721935844347,-2678.3227726,0.00010992,2]
[333196934,1721935844357,-2311.4729883,0.00010992,2]
[333196936,1721935844366,-1944.6232039,0.00010992,2]
[333196938,1721935844375,-2082.6584606,0.00010992,2]
[333196940,1721935844385,-1831.7620687,0.00010992,2]
[333196942,1721935844394,-1580.8656768,0.00010992,2]
[333196944,1721935844403,-1329.969285,0.00010992,2]
[333196946,1721935844412,-10000.0,0.00010997,2]
[333196947,1721935844421,-8500.0,0.00010999,2]
[333196949,1721935844431,-750.0,0.00010999,2]
[333196951,1721935844440,-4703.93015566,0.00010999,2]
[333196953,1721935844449,-351.84518395,0.00010999,2]
[333196955,1721935844458,-130426.935306,0.00011,2]
[333196957,1721935844468,-72848.68938613,0.00011,2]
[333196959,1721935844480,-1243.9391314,0.00011,2]
[333196961,1721935844496,-714.91547541,0.00011,2]
[333196964,1721935844508,-384.34999965,0.00011,2]
[333196966,1721935844519,-9123.0327794,0.00011,2]
[333196968,1721935844530,-3070.26497764,0.00011,2]
[333196972,1721935844559,-588.82,0.00010958,2]
[333196974,1721935844569,-244.82,0.00011,2]
[333197023,1721935846270,-547.84176427,9.941e-05,2]
[333197024,1721935846283,-285.94823573,9.941e-05,2]
[333197025,1721935846294,-398.02353035,0.000105,2]
[333197026,1721935846371,-349.00808743,0.000105,2]
[333197027,1721935846490,-66.96838222,0.000105,2]
[333197028,1721935846499,-270.12131295,0.00010798,2]
[333197029,1721935846511,-175.14468705,0.00010798,2]
[333197030,1721935846520,-445.02557785,0.00010958,2]
[333197031,1721935846531,-143.79442215,0.00010958,2]
[333197032,1721935846541,-588.82,0.00010958,2]
[333197033,1721935846550,-98.90025496,0.00010958,2]
[333197240,1721936698875,150.0,7e-05,2]
[333197241,1721936698896,150.0,7e-05,2]
[333197242,1721936698916,150.0,7e-05,2]
[333197243,1721936698936,150.0,7e-05,2]
[333197244,1721936698958,150.0,7e-05,2]
[333197245,1721936698978,150.0,7e-05,2]
[333197246,1721936698997,150.0,7e-05,2]
[333197247,1721936699018,150.0,7e-05,2]
[333197248,1721936699038,150.0,7e-05,2]
[333197249,1721936699058,150.0,7e-05,2]
[333197250,1721936699083,500.0,7e-05,2]
[333197251,1721936773360,150.0,7e-05,2]
[333197252,1721936773383,24617.52746557,7e-05,2]
[333197264,1721937033140,-260.88729792,8.133e-05,2]
[333197265,1721937033150,-156.17694935,8.177e-05,2]
[333197266,1721937033160,-188.67033941,8.177e-05,2]
[333197267,1721937033170,-352.43627906,8.177e-05,2]
[333197268,1721937033180,-1285.15,8.219e-05,2]
[333197269,1721937033190,-153.71132585,8.23e-05,2]
[333197270,1721937033200,-157.69581596,8.272e-05,2]
[333197271,1721937033210,-153.71132585,8.344e-05,2]
[333197272,1721937033222,-151.40003661,8.35e-05,2]
[333197273,1721937033232,-155.27583559,8.353e-05,2]
[333197274,1721937033243,-156.17694935,8.356e-05,2]
[333197275,1721937033251,-151.24816226,8.392e-05,2]
[333197276,1721937033261,-160.3085144,8.427e-05,2]
[333197277,1721937033271,-151.3523734,8.456e-05,2]
[333197278,1721937033282,-156.17694935,8.466e-05,2]
[333197279,1721937033292,-153.59883877,8.468e-05,2]
[333197280,1721937033302,-160.3085144,8.487e-05,2]
[333197281,1721937033312,-151.24816226,8.489e-05,2]
[333197282,1721937033321,-239.51300257,8.583e-05,2]
[333197283,1721937033331,-151.90435085,8.617e-05,2]
[333197284,1721937033341,-260.88729792,8.628e-05,2]
[333197285,1721937033351,-153.59883877,8.735e-05,2]
[333197286,1721937033361,-239.51300257,8.751e-05,2]
[333197287,1721937033371,-156.17694935,8.775e-05,2]
[333197288,1721937033381,-153.71132585,8.811e-05,2]
[333197289,1721937033391,-394.08351595,8.883e-05,2]
[333197290,1721937033423,-2480.12615262,8.883e-05,2]
[333197291,1721937033451,-387.02289021,8.883e-05,2]
[333197292,1721937033478,-376.524,8.883e-05,2]
[333197293,1721937033489,-1064.25258234,8.883e-05,2]
[333197302,1721937038495,-6045.54035109,8.883e-05,2]